[Event "Live Chess"]
[Site "Chess.com"]
[Date "2024.06.02"]
[Round "-"]
[White "Crowded_House"]
[Black "f4nomore"]
[Result "1-0"]
[WhiteElo "1629"]
[BlackElo "1275"]
[TimeControl "300"]
[EndTime "6:46:30 PDT"]
[Termination "Crowded_House won on time"]

1. d4 {[%clk 0:04:56.7]} 1... g6 {[%clk 0:04:58.5]} 2. Bg5 {[%clk 0:04:53.1]}
2... Bg7 {[%clk 0:04:58.4]} 3. c3 {[%clk 0:04:51.7]} 3... d6 {[%clk 0:04:58.3]}
4. e3 {[%clk 0:04:49.9]} 4... Nf6 {[%clk 0:04:58.2]} 5. Nd2 {[%clk 0:04:47.4]}
5... O-O {[%clk 0:04:56.5]} 6. Ngf3 {[%clk 0:04:46.5]} 6... Nc6 {[%clk 0:04:55]}
7. Bd3 {[%clk 0:04:45]} 7... Qe8 {[%clk 0:04:53.6]} 8. O-O {[%clk 0:04:43.6]}
8... e5 {[%clk 0:04:51.3]} 9. dxe5 {[%clk 0:04:41.9]} 9... Nxe5 {[%clk
0:04:49.4]} 10. Bxf6 {[%clk 0:04:33]} 10... Bxf6 {[%clk 0:04:46.9]} 11. Nxe5
{[%clk 0:04:29.1]} 11... Qxe5 {[%clk 0:04:40.5]} 12. Nf3 {[%clk 0:04:25.8]}
12... Qe8 {[%clk 0:04:37.9]} 13. Bc4 {[%clk 0:04:18.4]} 13... Be6 {[%clk
0:04:31.9]} 14. Bxe6 {[%clk 0:04:15.9]} 14... Qxe6 {[%clk 0:04:29.7]} 15. Nd4
{[%clk 0:04:15.2]} 15... Bxd4 {[%clk 0:04:24.5]} 16. exd4 {[%clk 0:04:12.8]}
16... Qd5 {[%clk 0:04:16.9]} 17. Re1 {[%clk 0:04:08.4]} 17... Rae8 {[%clk
0:04:13.3]} 18. a3 {[%clk 0:04:06.1]} 18... Re4 {[%clk 0:04:07]} 19. Rxe4 {[%clk
0:04:02.4]} 19... Qxe4 {[%clk 0:04:04.1]} 20. Qe1 {[%clk 0:03:55.6]} 20... Qd5
{[%clk 0:03:58.6]} 21. Qe2 {[%clk 0:03:48.6]} 21... c5 {[%clk 0:03:55.7]} 22.
dxc5 {[%clk 0:03:44.1]} 22... dxc5 {[%clk 0:03:51.8]} 23. Rd1 {[%clk 0:03:41.3]}
23... Qc6 {[%clk 0:03:47.1]} 24. Qd2 {[%clk 0:03:33.7]} 24... Re8 {[%clk
0:03:42.5]} 25. Kf1 {[%clk 0:03:31.5]} 25... Qb5+ {[%clk 0:03:36.4]} 26. Kg1
{[%clk 0:03:27.5]} 26... Kg7 {[%clk 0:03:34.1]} 27. h3 {[%clk 0:03:26.2]} 27...
Re2 {[%clk 0:03:24.9]} 28. Qf4 {[%clk 0:03:14.3]} 28... Qxb2 {[%clk 0:03:17.9]}
29. Rd7 {[%clk 0:03:07.1]} 29... Re1+ {[%clk 0:03:04.4]} 30. Kh2 {[%clk
0:03:04.9]} 30... Qb3 {[%clk 0:03:00.5]} 31. Qf3 {[%clk 0:02:47.2]} 31... Qe6
{[%clk 0:02:52]} 32. Rxb7 {[%clk 0:02:40.6]} 32... a5 {[%clk 0:02:38]} 33. Ra7
{[%clk 0:02:25.1]} 33... Qd6+ {[%clk 0:02:20.9]} 34. g3 {[%clk 0:02:06.4]} 34...
Qe6 {[%clk 0:02:12.8]} 35. Rxa5 {[%clk 0:01:59]} 35... c4 {[%clk 0:02:08.1]} 36.
Rd5 {[%clk 0:01:45.1]} 36... Re5 {[%clk 0:01:47.1]} 37. Rxe5 {[%clk 0:01:42.3]}
37... Qxe5 {[%clk 0:01:44.9]} 38. Qe3 {[%clk 0:01:37.6]} 38... Qa5 {[%clk
0:01:39.9]} 39. Qd4+ {[%clk 0:01:33.4]} 39... f6 {[%clk 0:01:35.9]} 40. Qxc4
{[%clk 0:01:32.4]} 40... Qxa3 {[%clk 0:01:34.2]} 41. Qd3 {[%clk 0:01:29.8]}
41... Qc5 {[%clk 0:01:28.5]} 42. Kg2 {[%clk 0:01:27.6]} 42... Qc6+ {[%clk
0:01:24.5]} 43. Qf3 {[%clk 0:01:24.9]} 43... Qc5 {[%clk 0:01:21.6]} 44. Qd3
{[%clk 0:01:21.4]} 44... Qc6+ {[%clk 0:01:17.9]} 45. Kg1 {[%clk 0:01:20.6]}
45... Qe6 {[%clk 0:01:08.6]} 46. Qd4 {[%clk 0:01:16.9]} 46... Qxh3 {[%clk
0:01:02.1]} 47. c4 {[%clk 0:01:13.7]} 47... Qf5 {[%clk 0:00:55.5]} 48. c5 {[%clk
0:01:10.4]} 48... Qb1+ {[%clk 0:00:51.8]} 49. Kg2 {[%clk 0:01:08.4]} 49... Qb7+
{[%clk 0:00:49]} 50. Kh2 {[%clk 0:01:05.5]} 50... Kh6 {[%clk 0:00:44]} 51. Qxf6
{[%clk 0:00:58.8]} 51... Qd5 {[%clk 0:00:39.7]} 52. Qf4+ {[%clk 0:00:56.8]}
52... g5 {[%clk 0:00:30.7]} 53. Qf6+ {[%clk 0:00:53.8]} 53... Kh5 {[%clk
0:00:28.8]} 54. Qd6 {[%clk 0:00:49.1]} 54... Qf3 {[%clk 0:00:19.1]} 55. Kg1
{[%clk 0:00:41.5]} 55... h6 {[%clk 0:00:13.1]} 56. Qe5 {[%clk 0:00:35.4]} 56...
Qd1+ {[%clk 0:00:05.2]} 57. Kg2 {[%clk 0:00:33.5]} 1-0

[Event "Live Chess"]
[Site "Chess.com"]
[Date "2024.06.02"]
[Round "-"]
[White "McCarthyStone"]
[Black "Mikhail_Golubev"]
[Result "1-0"]
[WhiteElo "2469"]
[BlackElo "2481"]
[TimeControl "300"]
[EndTime "6:46:36 PDT"]
[Termination "McCarthyStone won by resignation"]

1. b3 {[%clk 0:04:58.5]} 1... d6 {[%clk 0:04:57.5]} 2. Bb2 {[%clk 0:04:58.4]}
2... Nd7 {[%clk 0:04:56.7]} 3. d4 {[%clk 0:04:57.7]} 3... Ngf6 {[%clk
0:04:54.7]} 4. g3 {[%clk 0:04:57.3]} 4... g6 {[%clk 0:04:53.9]} 5. Bg2 {[%clk
0:04:57.2]} 5... Bg7 {[%clk 0:04:53.5]} 6. Nf3 {[%clk 0:04:57.1]} 6... O-O
{[%clk 0:04:52.7]} 7. O-O {[%clk 0:04:57]} 7... a5 {[%clk 0:04:51.7]} 8. a3
{[%clk 0:04:54.3]} 8... a4 {[%clk 0:04:49.8]} 9. b4 {[%clk 0:04:53.6]} 9... c5
{[%clk 0:04:48.1]} 10. bxc5 {[%clk 0:04:50.7]} 10... dxc5 {[%clk 0:04:45.1]} 11.
d5 {[%clk 0:04:49.4]} 11... Nb6 {[%clk 0:04:38.3]} 12. Ne5 {[%clk 0:04:38.7]}
12... Nfxd5 {[%clk 0:04:22.9]} 13. c4 {[%clk 0:04:33.4]} 13... Bxe5 {[%clk
0:03:50.1]} 14. Bxe5 {[%clk 0:04:33]} 14... Nxc4 {[%clk 0:03:48.2]} 15. Bxd5
{[%clk 0:03:38.2]} 15... Nxe5 {[%clk 0:03:45.4]} 16. Nc3 {[%clk 0:03:38.1]}
16... Bh3 {[%clk 0:02:46.3]} 17. Re1 {[%clk 0:03:36.5]} 17... Qc7 {[%clk
0:02:35.6]} 18. Qc2 {[%clk 0:03:30.6]} 18... Rfd8 {[%clk 0:02:29]} 19. Bh1
{[%clk 0:03:29.6]} 19... Bf5 {[%clk 0:02:20.7]} 20. Qc1 {[%clk 0:03:21.5]} 20...
Rd4 {[%clk 0:02:03.4]} 21. Nb5 {[%clk 0:03:20]} 21... Qb6 {[%clk 0:01:42.2]} 22.
Nxd4 {[%clk 0:03:15.1]} 22... cxd4 {[%clk 0:01:42.1]} 23. Qf4 {[%clk 0:02:58.7]}
23... Nc4 {[%clk 0:01:39.8]} 24. g4 {[%clk 0:02:49.6]} 24... Bc2 {[%clk
0:01:16.9]} 25. Rec1 {[%clk 0:02:31.9]} 25... Bb3 {[%clk 0:01:05.4]} 26. Be4
{[%clk 0:01:54.3]} 26... e5 {[%clk 0:00:55.1]} 27. Qg5 {[%clk 0:01:42.5]} 27...
f6 {[%clk 0:00:39.5]} 28. Qh6 {[%clk 0:01:38]} 28... Qc7 {[%clk 0:00:21.6]} 29.
Rab1 {[%clk 0:01:29.1]} 29... Qg7 {[%clk 0:00:17.4]} 30. Bd5+ {[%clk 0:01:28.1]}
30... Kh8 {[%clk 0:00:16.2]} 31. Qxg7+ {[%clk 0:01:27.5]} 31... Kxg7 {[%clk
0:00:16.1]} 32. Bxc4 {[%clk 0:01:27.4]} 1-0

[Event "Live Chess"]
[Site "Chess.com"]
[Date "2024.06.02"]
[Round "-"]
[White "upoe610"]
[Black "LL220284LL"]
[Result "0-1"]
[WhiteElo "2136"]
[BlackElo "2481"]
[TimeControl "300"]
[EndTime "6:46:45 PDT"]
[Termination "LL220284LL won by checkmate"]

1. c4 {[%clk 0:04:57.3]} 1... g6 {[%clk 0:04:59.3]} 2. g3 {[%clk 0:04:56]} 2...
Bg7 {[%clk 0:04:58.9]} 3. Bg2 {[%clk 0:04:55.3]} 3... Nf6 {[%clk 0:04:58.4]} 4.
Nc3 {[%clk 0:04:53.1]} 4... d6 {[%clk 0:04:57.4]} 5. d4 {[%clk 0:04:50.4]} 5...
c6 {[%clk 0:04:56.5]} 6. e4 {[%clk 0:04:48.6]} 6... Nbd7 {[%clk 0:04:55.8]} 7.
Nf3 {[%clk 0:04:47]} 7... O-O {[%clk 0:04:54.9]} 8. O-O {[%clk 0:04:46]} 8... e5
{[%clk 0:04:54.2]} 9. Re1 {[%clk 0:04:44.7]} 9... Qe7 {[%clk 0:04:52.6]} 10. Bg5
{[%clk 0:04:42.3]} 10... h6 {[%clk 0:04:50.8]} 11. Be3 {[%clk 0:04:41.6]} 11...
Rd8 {[%clk 0:04:47]} 12. d5 {[%clk 0:04:40.1]} 12... c5 {[%clk 0:04:45]} 13. Rb1
{[%clk 0:04:38.6]} 13... a5 {[%clk 0:04:40.2]} 14. a3 {[%clk 0:04:37.6]} 14...
Nf8 {[%clk 0:04:35.6]} 15. b4 {[%clk 0:04:35.1]} 15... axb4 {[%clk 0:04:35]} 16.
axb4 {[%clk 0:04:35]} 16... b6 {[%clk 0:04:34.5]} 17. bxc5 {[%clk 0:04:33.3]}
17... bxc5 {[%clk 0:04:34.4]} 18. Nb5 {[%clk 0:04:32.6]} 18... Ng4 {[%clk
0:04:31.4]} 19. Bd2 {[%clk 0:04:30.9]} 19... f5 {[%clk 0:04:30.1]} 20. h3 {[%clk
0:04:29.1]} 20... Nf6 {[%clk 0:04:29.1]} 21. Nh4 {[%clk 0:04:25.4]} 21... Nxe4
{[%clk 0:04:23.3]} 22. Bxe4 {[%clk 0:04:22.1]} 22... fxe4 {[%clk 0:04:23.2]} 23.
Rxe4 {[%clk 0:04:18.2]} 23... g5 {[%clk 0:04:19.8]} 24. Nf3 {[%clk 0:04:12.2]}
24... Bf5 {[%clk 0:04:18.8]} 25. Nc3 {[%clk 0:04:09.8]} 25... Ng6 {[%clk
0:04:14.8]} 26. Rb6 {[%clk 0:04:07]} 26... Bxe4 {[%clk 0:04:09.1]} 27. Nxe4
{[%clk 0:04:06.4]} 27... Rab8 {[%clk 0:04:08.4]} 28. Qb1 {[%clk 0:04:03.9]}
28... Rxb6 {[%clk 0:04:05.3]} 29. Qxb6 {[%clk 0:04:02.7]} 29... Bf8 {[%clk
0:03:59.5]} 30. Ba5 {[%clk 0:04:01.1]} 30... Ra8 {[%clk 0:03:56.2]} 31. h4
{[%clk 0:03:52.6]} 31... gxh4 {[%clk 0:03:52.8]} 32. Qc7 {[%clk 0:03:42.1]}
32... hxg3 {[%clk 0:03:47.4]} 33. fxg3 {[%clk 0:03:36.1]} 33... Qxc7 {[%clk
0:03:40.2]} 34. Bxc7 {[%clk 0:03:34.6]} 34... Ra6 {[%clk 0:03:39]} 35. Nh2
{[%clk 0:03:28.5]} 35... Kf7 {[%clk 0:03:34.4]} 36. Ng4 {[%clk 0:03:27.4]} 36...
h5 {[%clk 0:03:32.1]} 37. Ngf6 {[%clk 0:03:25.5]} 37... Be7 {[%clk 0:03:27]} 38.
Nxh5 {[%clk 0:03:23.9]} 38... Nf8 {[%clk 0:03:19.7]} 39. g4 {[%clk 0:03:20.9]}
39... Nd7 {[%clk 0:03:17.1]} 40. Nhg3 {[%clk 0:03:17.4]} 40... Nb6 {[%clk
0:03:12.9]} 41. Nf5 {[%clk 0:03:09.3]} 41... Nxc4 {[%clk 0:03:09.2]} 42. g5
{[%clk 0:03:03]} 42... Bf8 {[%clk 0:03:07.8]} 43. Kg2 {[%clk 0:02:58.7]} 43...
Kg6 {[%clk 0:03:00.8]} 44. Nh4+ {[%clk 0:02:54.9]} 44... Kh5 {[%clk 0:02:59]}
45. Nf5 {[%clk 0:02:53.7]} 45... Kg4 {[%clk 0:02:52.1]} 46. Nh6+ {[%clk
0:02:48.6]} 46... Bxh6 {[%clk 0:02:47.2]} 47. gxh6 {[%clk 0:02:46.9]} 47... Ne3+
{[%clk 0:02:30.3]} 48. Kf2 {[%clk 0:02:43.6]} 48... Nxd5 {[%clk 0:02:29.3]} 49.
h7 {[%clk 0:02:38.5]} 49... Ra8 {[%clk 0:02:27.3]} 50. Bxd6 {[%clk 0:02:36.8]}
50... Kf5 {[%clk 0:02:25.6]} 51. Nxc5 {[%clk 0:02:34.6]} 51... Rh8 {[%clk
0:02:21.4]} 52. Nd3 {[%clk 0:02:33.8]} 52... e4 {[%clk 0:02:19.4]} 53. Ne5
{[%clk 0:02:17.6]} 53... Rxh7 {[%clk 0:02:16.9]} 54. Nc4 {[%clk 0:02:16.1]}
54... Rb7 {[%clk 0:02:10.5]} 55. Ke2 {[%clk 0:02:10.5]} 55... Rb3 {[%clk
0:02:05.4]} 56. Bc5 {[%clk 0:02:07.6]} 56... Rc3 {[%clk 0:01:59]} 57. Nd6+
{[%clk 0:02:05.6]} 57... Kf4 {[%clk 0:01:54]} 58. Bd4 {[%clk 0:02:00.2]} 58...
Rd3 {[%clk 0:01:49.8]} 59. Bg7 {[%clk 0:01:52.8]} 59... Nc3+ {[%clk 0:01:47.3]}
60. Ke1 {[%clk 0:01:47.3]} 60... Rd1+ {[%clk 0:01:44.6]} 61. Kf2 {[%clk
0:01:46.3]} 61... e3+ {[%clk 0:01:43.7]} 62. Kg2 {[%clk 0:01:45.2]} 62... Rxd6
{[%clk 0:01:42.4]} 63. Bxc3 {[%clk 0:01:43.7]} 63... Rd2+ {[%clk 0:01:40.9]} 64.
Kf1 {[%clk 0:01:41.1]} 64... Kf3 {[%clk 0:01:39.8]} 65. Ke1 {[%clk 0:01:36.7]}
65... Rc2 {[%clk 0:01:38.2]} 66. Bd2 {[%clk 0:01:32.7]} 66... Rxd2 {[%clk
0:01:36.9]} 67. Kf1 {[%clk 0:01:31.9]} 67... Rd1# {[%clk 0:01:36.8]} 0-1

[Event "Live Chess"]
[Site "Chess.com"]
[Date "2024.06.02"]
[Round "-"]
[White "MagnersCarlsberg2870"]
[Black "CheckThis4"]
[Result "0-1"]
[WhiteElo "1782"]
[BlackElo "2680"]
[TimeControl "300"]
[EndTime "6:46:50 PDT"]
[Termination "CheckThis4 won by resignation"]

1. d4 {[%clk 0:04:56.3]} 1... Nf6 {[%clk 0:04:58.7]} 2. Nf3 {[%clk 0:04:55]}
2... g6 {[%clk 0:04:57.6]} 3. Nc3 {[%clk 0:04:53.1]} 3... d5 {[%clk 0:04:55.4]}
4. Bg5 {[%clk 0:04:51.2]} 4... Bg7 {[%clk 0:04:54.5]} 5. h4 {[%clk 0:04:49.4]}
5... Bg4 {[%clk 0:04:52]} 6. Qc1 {[%clk 0:04:46.4]} 6... h6 {[%clk 0:04:49.5]}
7. Bf4 {[%clk 0:04:42.2]} 7... Nbd7 {[%clk 0:04:45.3]} 8. e3 {[%clk 0:04:40.7]}
8... c5 {[%clk 0:04:42.2]} 9. Ne5 {[%clk 0:04:38.2]} 9... Be6 {[%clk 0:04:36.4]}
10. Bb5 {[%clk 0:04:34.8]} 10... O-O {[%clk 0:04:33.5]} 11. Nxd7 {[%clk
0:04:24.1]} 11... Nxd7 {[%clk 0:04:28.3]} 12. e4 {[%clk 0:04:20]} 12... cxd4
{[%clk 0:04:24.4]} 13. Nxd5 {[%clk 0:04:16.3]} 13... Bxd5 {[%clk 0:04:21]} 14.
exd5 {[%clk 0:04:15.4]} 14... Qa5+ {[%clk 0:04:19.5]} 15. Kf1 {[%clk 0:04:08.5]}
15... Qxb5+ {[%clk 0:04:14.8]} 16. Kg1 {[%clk 0:04:07.5]} 16... Qxd5 {[%clk
0:04:14]} 17. Bxh6 {[%clk 0:04:06]} 17... Nf6 {[%clk 0:04:06.9]} 18. Bxg7 {[%clk
0:04:02]} 18... Kxg7 {[%clk 0:04:05.7]} 19. h5 {[%clk 0:04:00]} 19... Rh8 {[%clk
0:04:04]} 20. h6+ {[%clk 0:03:57.6]} 20... Kh7 {[%clk 0:04:02.5]} 0-1

[Event "Live Chess"]
[Site "Chess.com"]
[Date "2024.06.02"]
[Round "-"]
[White "Colm_Buckley"]
[Black "Frankie_Badacsonyi"]
[Result "0-1"]
[WhiteElo "1882"]
[BlackElo "2380"]
[TimeControl "300"]
[EndTime "6:47:12 PDT"]
[Termination "Frankie_Badacsonyi won by resignation"]

1. d4 {[%clk 0:04:56.9]} 1... e6 {[%clk 0:04:59.2]} 2. c4 {[%clk 0:04:56.4]}
2... d5 {[%clk 0:04:58.1]} 3. Nc3 {[%clk 0:04:55.3]} 3... Bb4 {[%clk 0:04:57.2]}
4. Nf3 {[%clk 0:04:53.7]} 4... Nf6 {[%clk 0:04:54.2]} 5. e3 {[%clk 0:04:47.3]}
5... O-O {[%clk 0:04:51.7]} 6. a3 {[%clk 0:04:44.2]} 6... Bxc3+ {[%clk
0:04:50.3]} 7. bxc3 {[%clk 0:04:42.6]} 7... c6 {[%clk 0:04:49.9]} 8. Qc2 {[%clk
0:04:37]} 8... Qc7 {[%clk 0:04:48.7]} 9. Bd3 {[%clk 0:04:29.5]} 9... b6 {[%clk
0:04:47.8]} 10. cxd5 {[%clk 0:04:23.2]} 10... cxd5 {[%clk 0:04:42.9]} 11. O-O
{[%clk 0:04:15.8]} 11... Ba6 {[%clk 0:04:41.8]} 12. Re1 {[%clk 0:04:10.5]} 12...
Bxd3 {[%clk 0:04:40.5]} 13. Qxd3 {[%clk 0:04:09.1]} 13... Nc6 {[%clk 0:04:39.9]}
14. Nd2 {[%clk 0:04:00.3]} 14... Na5 {[%clk 0:04:38.6]} 15. e4 {[%clk
0:03:57.3]} 15... dxe4 {[%clk 0:04:36.7]} 16. Nxe4 {[%clk 0:03:55.4]} 16... Nxe4
{[%clk 0:04:36.3]} 17. Rxe4 {[%clk 0:03:48.5]} 17... Rac8 {[%clk 0:04:35.8]} 18.
Rh4 {[%clk 0:03:42.3]} 18... f5 {[%clk 0:04:33.3]} 19. Bb2 {[%clk 0:03:23.4]}
19... Nc4 {[%clk 0:04:28.7]} 20. Bc1 {[%clk 0:02:55.5]} 20... b5 {[%clk
0:04:18.1]} 21. g4 {[%clk 0:02:37.5]} 21... Qc6 {[%clk 0:04:09.9]} 22. gxf5
{[%clk 0:02:16.8]} 22... Rxf5 {[%clk 0:04:07.9]} 23. Qh3 {[%clk 0:02:03.3]}
23... Qf3 {[%clk 0:03:22.5]} 24. Be3 {[%clk 0:01:21.9]} 24... Nxe3 {[%clk
0:03:15.5]} 25. fxe3 {[%clk 0:01:18.5]} 25... Rg5+ {[%clk 0:03:12.2]} 0-1

[Event "Live Chess"]
[Site "Chess.com"]
[Date "2024.06.02"]
[Round "-"]
[White "CarmelJane"]
[Black "NAZRIZ1977"]
[Result "1-0"]
[WhiteElo "2009"]
[BlackElo "2071"]
[TimeControl "300"]
[EndTime "6:47:15 PDT"]
[Termination "CarmelJane won by resignation"]

1. e4 {[%clk 0:04:57.5]} 1... c6 {[%clk 0:04:58.2]} 2. d4 {[%clk 0:04:56.2]}
2... d5 {[%clk 0:04:57.6]} 3. e5 {[%clk 0:04:55.9]} 3... Bf5 {[%clk 0:04:55.9]}
4. Nf3 {[%clk 0:04:55.4]} 4... e6 {[%clk 0:04:54.9]} 5. Be2 {[%clk 0:04:54.7]}
5... Nd7 {[%clk 0:04:50.7]} 6. O-O {[%clk 0:04:51.9]} 6... Ne7 {[%clk
0:04:42.3]} 7. Be3 {[%clk 0:04:48.4]} 7... Ng6 {[%clk 0:04:41]} 8. Nbd2 {[%clk
0:04:44.1]} 8... Nh4 {[%clk 0:04:39.1]} 9. Nxh4 {[%clk 0:04:41.1]} 9... Qxh4
{[%clk 0:04:38]} 10. Nf3 {[%clk 0:04:37.3]} 10... Qe7 {[%clk 0:04:24]} 11. c4
{[%clk 0:04:35.8]} 11... dxc4 {[%clk 0:04:17.4]} 12. Bxc4 {[%clk 0:04:32.3]}
12... Nb6 {[%clk 0:04:17]} 13. Bd3 {[%clk 0:04:23]} 13... Bg4 {[%clk 0:04:14.5]}
14. h3 {[%clk 0:04:07.7]} 14... Bh5 {[%clk 0:04:10.3]} 15. Be2 {[%clk 0:03:55]}
15... h6 {[%clk 0:04:07.1]} 16. Qb3 {[%clk 0:03:40]} 16... g5 {[%clk 0:04:01.2]}
17. a3 {[%clk 0:03:17.4]} 17... Rg8 {[%clk 0:03:58]} 18. Bd2 {[%clk 0:03:09.9]}
18... g4 {[%clk 0:03:53.5]} 19. Bb4 {[%clk 0:03:01.1]} 19... gxf3 {[%clk
0:03:37.6]} 20. Bxe7 {[%clk 0:02:57.1]} 20... fxe2 {[%clk 0:03:36.9]} 21. Rfe1
{[%clk 0:02:47.9]} 21... Bxe7 {[%clk 0:03:35.7]} 22. Kh2 {[%clk 0:02:42.5]}
22... O-O-O {[%clk 0:03:33.4]} 23. g4 {[%clk 0:02:27.3]} 23... Bg6 {[%clk
0:03:31.7]} 24. Rxe2 {[%clk 0:02:26.1]} 24... Rxd4 {[%clk 0:03:25.4]} 25. Rd1
{[%clk 0:02:22.6]} 25... Rxd1 {[%clk 0:03:22.8]} 26. Qxd1 {[%clk 0:02:22.5]}
26... Rd8 {[%clk 0:03:21.7]} 27. Rd2 {[%clk 0:02:14.2]} 27... Rxd2 {[%clk
0:03:17.8]} 28. Qxd2 {[%clk 0:02:14.1]} 28... Nd5 {[%clk 0:03:17.5]} 29. Qxh6
{[%clk 0:02:11.4]} 29... Bc5 {[%clk 0:03:08]} 30. f4 {[%clk 0:02:07.1]} 30...
Be3 {[%clk 0:03:05.5]} 31. Qh8+ {[%clk 0:02:00.8]} 31... Kc7 {[%clk 0:03:04.3]}
32. f5 {[%clk 0:01:47.6]} 32... exf5 {[%clk 0:03:02.4]} 33. gxf5 {[%clk
0:01:47.5]} 33... Bxf5 {[%clk 0:02:54.6]} 34. Qf8 {[%clk 0:01:46.9]} 34... Be6
{[%clk 0:02:49.1]} 35. Qd6+ {[%clk 0:01:44.6]} 35... Kb6 {[%clk 0:02:47]} 36. h4
{[%clk 0:01:39.3]} 36... Bf4+ {[%clk 0:02:26.1]} 37. Kg1 {[%clk 0:01:34]} 37...
Bg4 {[%clk 0:02:17.6]} 38. Qd8+ {[%clk 0:01:25.2]} 38... Kb5 {[%clk 0:02:14]}
39. Qe8 {[%clk 0:01:20.3]} 39... Be6 {[%clk 0:02:00.8]} 40. h5 {[%clk 0:01:18]}
40... Bxe5 {[%clk 0:01:59.6]} 41. h6 {[%clk 0:01:16.2]} 41... Bxb2 {[%clk
0:01:56.3]} 42. h7 {[%clk 0:01:14.8]} 42... Nf6 {[%clk 0:01:51.9]} 43. h8=Q
{[%clk 0:01:08.8]} 43... Nxe8 {[%clk 0:01:33]} 44. Qxb2+ {[%clk 0:01:08.7]}
44... Ka6 {[%clk 0:01:30.2]} 45. Qe5 {[%clk 0:01:04.7]} 45... Kb6 {[%clk
0:01:22.4]} 46. Kf2 {[%clk 0:01:03.7]} 46... Nc7 {[%clk 0:01:21.2]} 47. Qd4+
{[%clk 0:00:59.7]} 47... c5 {[%clk 0:01:15.7]} 48. Qd6+ {[%clk 0:00:56.8]} 48...
Kb5 {[%clk 0:01:13.7]} 49. Qxc7 {[%clk 0:00:52.4]} 1-0

[Event "Live Chess"]
[Site "Chess.com"]
[Date "2024.06.02"]
[Round "-"]
[White "lateforthesky"]
[Black "KeithArkell"]
[Result "0-1"]
[WhiteElo "2065"]
[BlackElo "2422"]
[TimeControl "300"]
[EndTime "6:47:17 PDT"]
[Termination "KeithArkell won by checkmate"]

1. e4 {[%clk 0:04:57]} 1... c6 {[%clk 0:04:59]} 2. Nf3 {[%clk 0:04:55.3]} 2...
d5 {[%clk 0:04:58.2]} 3. exd5 {[%clk 0:04:54.2]} 3... cxd5 {[%clk 0:04:57.6]} 4.
Ne5 {[%clk 0:04:53.5]} 4... Nf6 {[%clk 0:04:56.6]} 5. d4 {[%clk 0:04:51.9]} 5...
Nc6 {[%clk 0:04:55.6]} 6. Bb5 {[%clk 0:04:50.7]} 6... Bd7 {[%clk 0:04:54.7]} 7.
Nxd7 {[%clk 0:04:49.2]} 7... Qxd7 {[%clk 0:04:53.8]} 8. c3 {[%clk 0:04:48]} 8...
a6 {[%clk 0:04:52.4]} 9. Bd3 {[%clk 0:04:46.2]} 9... b5 {[%clk 0:04:51.6]} 10.
O-O {[%clk 0:04:43.8]} 10... g6 {[%clk 0:04:51]} 11. Re1 {[%clk 0:04:39.3]}
11... Bg7 {[%clk 0:04:50.3]} 12. Nd2 {[%clk 0:04:37.4]} 12... O-O {[%clk
0:04:49.4]} 13. Nb3 {[%clk 0:04:35.9]} 13... e6 {[%clk 0:04:47]} 14. Nc5 {[%clk
0:04:33.6]} 14... Qc7 {[%clk 0:04:45.8]} 15. a4 {[%clk 0:03:57.8]} 15... Nd7
{[%clk 0:04:27.1]} 16. Nxd7 {[%clk 0:03:49.4]} 16... Qxd7 {[%clk 0:04:25.3]} 17.
axb5 {[%clk 0:03:47.8]} 17... axb5 {[%clk 0:04:24.5]} 18. Rxa8 {[%clk
0:03:46.2]} 18... Rxa8 {[%clk 0:04:23.9]} 19. Bxb5 {[%clk 0:03:44.1]} 19... Qb7
{[%clk 0:04:23.2]} 20. Bxc6 {[%clk 0:03:35.9]} 20... Qxc6 {[%clk 0:04:21.6]} 21.
g3 {[%clk 0:03:31.7]} 21... Bf6 {[%clk 0:04:20]} 22. Qe2 {[%clk 0:03:27.3]}
22... Kg7 {[%clk 0:04:12.9]} 23. h4 {[%clk 0:03:24.4]} 23... h5 {[%clk
0:04:11.4]} 24. Kg2 {[%clk 0:03:12.7]} 24... Ra2 {[%clk 0:04:07.5]} 25. Qe3
{[%clk 0:03:05.2]} 25... Qc7 {[%clk 0:04:03.8]} 26. Re2 {[%clk 0:02:49.3]} 26...
Ra1 {[%clk 0:03:56.2]} 27. Bd2 {[%clk 0:02:47.2]} 27... Rb1 {[%clk 0:03:52.2]}
28. b4 {[%clk 0:02:44.9]} 28... Qc4 {[%clk 0:03:50.5]} 29. Be1 {[%clk 0:02:34]}
29... Rd1 {[%clk 0:03:45.5]} 30. Rd2 {[%clk 0:02:29.3]} 30... Rc1 {[%clk
0:03:41.6]} 31. Re2 {[%clk 0:02:26.4]} 31... Rb1 {[%clk 0:03:40.8]} 32. Qd2
{[%clk 0:02:10]} 32... Qb3 {[%clk 0:03:35.2]} 33. Qe3 {[%clk 0:02:02.7]} 33...
Qd1 {[%clk 0:03:00.7]} 34. Kh2 {[%clk 0:01:59.9]} 34... Kg8 {[%clk 0:02:47.9]}
35. Kg2 {[%clk 0:01:58.8]} 35... Bg7 {[%clk 0:02:46.2]} 36. Kh2 {[%clk
0:01:57.6]} 36... Bh6 {[%clk 0:02:45.1]} 37. Qe5 {[%clk 0:01:53.9]} 37... Ra1
{[%clk 0:02:37.6]} 38. Kg2 {[%clk 0:01:46.4]} 38... Bd2 {[%clk 0:02:32.9]} 39.
Rxd2 {[%clk 0:01:41.2]} 39... Qxe1 {[%clk 0:02:31.9]} 40. Qxe1 {[%clk
0:01:39.7]} 40... Rxe1 {[%clk 0:02:31.8]} 41. Rb2 {[%clk 0:01:38.8]} 41... Rc1
{[%clk 0:02:31.1]} 42. b5 {[%clk 0:01:37.5]} 42... Rxc3 {[%clk 0:02:30.1]} 43.
b6 {[%clk 0:01:36.9]} 43... Rc8 {[%clk 0:02:29.2]} 44. b7 {[%clk 0:01:36.1]}
44... Rb8 {[%clk 0:02:28.5]} 45. Kf3 {[%clk 0:01:35.5]} 45... Kf8 {[%clk
0:02:27.9]} 46. Kf4 {[%clk 0:01:33.1]} 46... f6 {[%clk 0:02:27.3]} 47. g4 {[%clk
0:01:32]} 47... hxg4 {[%clk 0:02:25.8]} 48. Kxg4 {[%clk 0:01:31]} 48... Kg7
{[%clk 0:02:18.1]} 49. Rb6 {[%clk 0:01:29.5]} 49... Kh6 {[%clk 0:02:10]} 50. f4
{[%clk 0:01:27.2]} 50... f5+ {[%clk 0:02:08.1]} 51. Kg3 {[%clk 0:01:24.8]} 51...
Kh5 {[%clk 0:02:05.3]} 52. Kh3 {[%clk 0:01:21.8]} 52... Kh6 {[%clk 0:02:03.7]}
53. Kg3 {[%clk 0:01:20.9]} 53... Kg7 {[%clk 0:02:03.1]} 54. Kh3 {[%clk 0:01:19]}
54... Kf6 {[%clk 0:02:02.5]} 55. Kg3 {[%clk 0:01:17.9]} 55... Ke7 {[%clk
0:02:01.9]} 56. h5 {[%clk 0:01:15.3]} 56... gxh5 {[%clk 0:02:00.5]} 57. Kh4
{[%clk 0:01:14.7]} 57... Kf6 {[%clk 0:02:00.1]} 58. Kxh5 {[%clk 0:01:13.8]}
58... Rh8# {[%clk 0:01:58.8]} 0-1